[Event "Marienbad Open-B1 2019"]
[Site "Marianske Lazne"]
[Date "2019.01.22"]
[Round "4"]
[White "Gorbatov, Alexej"]
[Black "Baum, Jonasz"]
[Result "1/2-1/2"]
[ECO "B26"]
[WhiteElo "2389"]
[BlackElo "2302"]
[Annotator "NA"]
[PlyCount "84"]
[EventDate "2019.01.17"]
[EventType "tourn"]
[EventCountry "CZE"]
[SourceTitle "playchess.com"]
[Source "ChessBase"]
[SourceQuality "1"]
[TimeControl "40/5400+30:1800+30"]

1. e4 {[%emt 0:00:00]} c5 {[%emt 0:00:00]} 2. Nc3 {[%emt 0:00:00]} Nc6 {[%emt 0:00:01]} 3. g3 {[%emt 0:00:00]} g6 {[%emt 0:00:16]} 4. Bg2 {[%emt 0:00:03]} Bg7 {[%emt 0:00:05]} 5. d3 {[%emt 0:00:07]} d6 {[%emt 0:00:16]} 6. Be3 {[%emt 0:00:13]} Nf6 {[%emt 0:00:14]} 7. h3 {[%emt 0:00:30]} Nd4 {[%emt 0:01:43]} 8. Nge2 {[%emt 0:03:50]} e5 {[%emt 0:00:06]} 9. O-O {[%emt 0:00:52]} O-O {[%emt 0:00:06]} 10. f4 {[%emt 0:08:24]} b5 {[%emt 0:04:07] B26: Closed Sicilian: 3 g3, lines with early Be3} 11. a3 {[%emt 0:05:57]} Bb7 {[%emt 0:03:28]} (11... Rb8 12. b4 Nh5 13. bxc5 dxc5 14. g4 Nxf4 15. Nxf4 exf4 16. Bxf4 Rb7 17. Nd5 Ne6 18. Be3 {1-0 (53) Lin,C (2472)-Yu,L (2372) China 2013}) 12. g4 $146 {[%emt 0:06:19]} ({Predecessor:} 12. fxe5 dxe5 13. b4 a6 14. bxc5 Nd7 15. a4 b4 16. Nd5 Bxd5 17. exd5 Nxc5 {0-1 (47) James,M (1548)-Mer,A (1474) IECG email 2006}) 12... Nxe2+ {[%emt 0:07:40]} 13. Nxe2 {[%emt 0:06:35]} exf4 {[%emt 0:00:15]} 14. Nxf4 {[%emt 0:02:58]} Re8 {[%emt 0:01:28]} 15. Bf2 {[%emt 0:05:40]} Qc7 {[%emt 0:02:59]} 16. Bg3 {[%emt 0:09:01]} Rad8 {[%emt 0:02:07]} 17. Kh2 {[%emt 0:02:55]} Qc8 {[%emt 0:04:51]} 18. Qd2 {[%emt 0:01:55]} h6 {[%emt 0:03:40]} 19. Rf2 {[%emt 0:04:58]} d5 {[%emt 0:08:06]} 20. Nxd5 {[%emt 0:03:26]} Nxd5 {[%emt 0:00:19]} 21. exd5 {[%emt 0:00:03]} Bxd5 {[%emt 0:00:11]} 22. Bxd5 {[%emt 0:02:17]} Rxd5 {[%emt 0:01:06]} 23. Raf1 {[%emt 0:00:13]} Re7 {[%emt 0:07:04]} 24. b3 {[%emt 0:05:54]} Qd7 {[%emt 0:09:14]} 25. Re2 {[%emt 0:06:11]} Rxe2+ {[%emt 0:17:57]} 26. Qxe2 {[%emt 0:00:21]} c4 {[%emt 0:00:12]} 27. bxc4 {[%emt 0:01:13]} bxc4 {[%emt 0:00:03]} 28. Rf3 {[%emt 0:00:08]} cxd3 {[%emt 0:03:19]} 29. Rxd3 {[%emt 0:00:53]} Rxd3 {[%emt 0:01:48]} 30. Qxd3 {[%emt 0:00:16]} Qxd3 {[%emt 0:01:15]} 31. cxd3 {[%emt 0:00:03]} Bb2 {[%emt 0:04:13]} 32. a4 {[%emt 0:01:22]} Kg7 {[%emt 0:00:11]} 33. Bf4 {[%emt 0:00:46]} g5 {[%emt 0:01:04]} 34. Be3 {[%emt 0:00:39]} a6 {[%emt 0:00:30]} 35. Kg3 {[%emt 0:04:35]} Kg6 {[%emt 0:00:14]} 36. Kf3 {[%emt 0:04:41]} f5 {[%emt 0:00:06]} 37. Bc5 {[%emt 0:00:40]} h5 {[%emt 0:01:28]} 38. Be3 $11 {[%emt 0:02:02]} Be5 {[%emt 0:01:00]} 39. Bd2 {[%emt 0:01:27]} Bd4 {[%emt 0:06:56]} 40. Bc1 {[%emt 0:01:20]} Bb6 {[%emt 0:05:01]} 41. Bd2 {[%emt 0:30:20]} Bd8 {[%emt 0:32:48]} 42. Be3 {[%emt 0:00:33]} Bc7 {[%emt 0:02:43] Ke4} 1/2-1/2

[Event "Marienbad Open-B1 2019"]
[Site "Marianske Lazne"]
[Date "2019.01.22"]
[Round "4"]
[White "Jasny, Stanislav"]
[Black "Kornitzky, Tino"]
[Result "1-0"]
[ECO "D35"]
[WhiteElo "2365"]
[BlackElo "2133"]
[Annotator "NA"]
[PlyCount "119"]
[EventDate "2019.01.17"]
[EventType "tourn"]
[EventCountry "CZE"]
[SourceTitle "playchess.com"]
[Source "ChessBase"]
[SourceQuality "1"]
[TimeControl "40/5400+30:1800+30"]

1. d4 {[%emt 0:00:00]} Nf6 {[%emt 0:00:00]} 2. c4 {[%emt 0:00:00]} e6 {[%emt 0:00:00]} 3. Nf3 {[%emt 0:00:22]} d5 {[%emt 0:00:00]} 4. Nc3 {[%emt 0:00:27]} Nbd7 {[%emt 0:00:00]} 5. Bg5 {[%emt 0:01:10]} c6 {[%emt 0:00:00]} 6. cxd5 {[%emt 0:00:56]} exd5 {[%emt 0:00:07]} 7. e3 {[%emt 0:00:19]} Be7 {[%emt 0:00:09]} 8. Bd3 {[%emt 0:00:15]} Nh5 {[%emt 0:00:29]} 9. Bxe7 {[%emt 0:00:23]} Qxe7 {[%emt 0:00:01]} 10. O-O {[%emt 0:00:28]} g6 {[%emt 0:00:51] D35: Queen's Gambit Declined: Exchange Variation} 11. Qb1 {[%emt 0:01:16]} O-O {[%emt 0:01:38]} 12. b4 {[%emt 0:00:06]} a6 {[%emt 0:00:57]} 13. a4 {[%emt 0:00:16]} Nb6 {[%emt 0:03:43]} 14. b5 {[%emt 0:09:59]} cxb5 $146 {[%emt 0:09:43] [#]} ({Predecessor:} 14... axb5 15. axb5 Rxa1 16. Qxa1 c5 17. dxc5 Qxc5 18. Rc1 Bg4 {½-½ (55) Milov,V (2614)-Borgo,G (2428) Bratto 2001}) 15. a5 $1 {[%emt 0:04:40]} b4 {[%emt 0:11:04]} 16. Na2 {[%emt 0:17:43]} Nd7 {[%emt 0:04:31]} 17. Qxb4 {[%emt 0:02:13]} Qxb4 {[%emt 0:04:05]} 18. Nxb4 {[%emt 0:00:06]} Ndf6 {[%emt 0:02:17]} 19. Rfc1 {[%emt 0:01:04]} Ng7 {[%emt 0:02:49]} 20. h3 {[%emt 0:03:39]} Ne6 {[%emt 0:02:17]} 21. Ne5 {[%emt 0:03:17]} Rd8 {[%emt 0:04:29]} 22. f3 {[%emt 0:03:39]} Bd7 {[%emt 0:08:35]} 23. Ng4 {[%emt 0:02:01]} Nxg4 {[%emt 0:03:47]} 24. hxg4 {[%emt 0:00:05]} Be8 {[%emt 0:08:15]} 25. Kf2 {[%emt 0:04:31]} Rd6 {[%emt 0:04:04]} 26. Ra3 {[%emt 0:02:22]} Kg7 {[%emt 0:06:25]} 27. Rac3 {[%emt 0:01:54]} Rad8 {[%emt 0:04:41]} 28. Rc8 {[%emt 0:04:35]} Bc6 {[%emt 0:04:58]} 29. Rxd8 {[%emt 0:01:59]} Nxd8 {[%emt 0:01:04]} 30. Rb1 {[%emt 0:05:28]} Bd7 {[%emt 0:03:02]} 31. Rc1 {[%emt 0:07:47]} Nc6 {[%emt 0:02:41]} 32. Nxc6 {[%emt 0:00:14]} Bxc6 {[%emt 0:00:17]} 33. Ke2 {[%emt 0:00:32]} h6 {[%emt 0:04:09]} 34. Kd2 {[%emt 0:00:07]} Re6 {[%emt 0:00:52]} 35. Rc5 {[%emt 0:04:40]} Rd6 {[%emt 0:01:59]} 36. Rc1 {[%emt 0:01:00]} Re6 {[%emt 0:00:14]} 37. Rb1 {[%emt 0:00:06]} Kf6 {[%emt 0:00:57]} 38. Be2 {[%emt 0:03:48]} Rd6 {[%emt 0:01:01]} 39. Rc1 {[%emt 0:01:10]} Re6 {[%emt 0:01:01]} 40. Rc5 {[%emt 0:00:06]} Rd6 {[%emt 0:00:19]} 41. Bd1 {[%emt 0:30:09]} Ke7 {[%emt 0:06:32]} 42. Bb3 {[%emt 0:00:00]} f5 {[%emt 0:04:48]} 43. gxf5 {[%emt 0:00:00]} gxf5 {[%emt 0:00:03]} 44. Ke2 {[%emt 0:00:00]} Kf6 {[%emt 0:01:10]} 45. Kf2 {[%emt 0:00:00]} Rd7 {[%emt 0:00:52]} 46. Bd1 {[%emt 0:00:00]} Ke6 {[%emt 0:03:05]} 47. Be2 {[%emt 0:00:00]} Kd6 {[%emt 0:01:10]} 48. Rc1 {[%emt 0:00:00]} Rf7 {[%emt 0:00:46]} 49. Rh1 {[%emt 0:00:00]} Rf6 {[%emt 0:00:24]} 50. Bd3 {[%emt 0:00:00]} Kc7 {[%emt 0:01:05]} 51. Ra1 {[%emt 0:00:00]} Rf7 {[%emt 0:01:43]} 52. Ra2 {[%emt 0:00:00]} (52. Rc1 $142) 52... Kd6 {[%emt 0:03:21] [#]} (52... f4 $16) 53. Kg3 $1 {[%emt 0:00:00]} Rf6 {[%emt 0:03:12]} 54. Kf4 {[%emt 0:00:00]} Ke6 {[%emt 0:00:16]} 55. Rc2 {[%emt 0:00:00]} Rf8 {[%emt 0:01:49]} 56. Rb2 $18 {[%emt 0:02:18]} Rf6 {[%emt 0:08:14]} 57. Rb6 {[%emt 0:00:59]} Rf7 {[%emt 0:01:07]} 58. Bxa6 {[%emt 0:00:22]} Kd6 {[%emt 0:00:05]} 59. Bd3 {[%emt 0:01:05]} Ke6 {[%emt 0:00:42]} 60. a6 {[%emt 0:00:39]} 1-0

[Event "Marienbad Open-B1 2019"]
[Site "Marianske Lazne"]
[Date "2019.01.22"]
[Round "4"]
[White "Mica, Marek"]
[Black "Patil, Mitali"]
[Result "1-0"]
[ECO "D36"]
[WhiteElo "2212"]
[BlackElo "2062"]
[Annotator "NA"]
[PlyCount "95"]
[EventDate "2019.01.17"]
[EventType "tourn"]
[EventCountry "CZE"]
[SourceTitle "playchess.com"]
[Source "ChessBase"]
[SourceQuality "1"]
[TimeControl "40/5400+30:1800+30"]

1. d4 {[%emt 0:00:00]} d5 {[%emt 0:00:00]} 2. c4 {[%emt 0:00:00]} e6 {[%emt 0:00:00]} 3. Nc3 {[%emt 0:00:01]} Nf6 {[%emt 0:00:00]} 4. cxd5 {[%emt 0:00:14]} exd5 {[%emt 0:00:00]} 5. Bg5 {[%emt 0:00:13]} c6 {[%emt 0:00:07]} 6. e3 {[%emt 0:00:11]} Be7 {[%emt 0:00:03]} 7. Qc2 {[%emt 0:00:33]} Nbd7 {[%emt 0:00:05]} 8. Bd3 {[%emt 0:00:47]} h6 {[%emt 0:00:15]} 9. Bh4 {[%emt 0:00:11]} Nh5 {[%emt 0:00:16]} 10. Bxe7 {[%emt 0:01:27] D36: Queen's Gambit Declined: Exchange Variation: Main line (5 Bg5 c6 6 Qc2)} Qxe7 {[%emt 0:00:03]} 11. Nf3 {[%emt 0:00:33]} (11. O-O-O Nb6 12. Nf3 Nf6 13. Kb1 Be6 14. Ka1 O-O-O 15. Na4 Kb8 16. Rc1 Rhe8 17. Nc5 Bc8 {1-0 (50) Nepomniachtchi,I (2757)-Nisipeanu,L (2672) Dortmund 2018}) 11... Nf4 {[%emt 0:01:40]} 12. O-O {[%emt 0:01:06]} Nxd3 {[%emt 0:00:19] Q} 13. Qxd3 {[%emt 0:00:08]} Nf6 {[%emt 0:10:38]} 14. Ne5 {[%emt 0:11:37]} Ng4 {[%emt 0:02:09]} 15. Nxg4 {[%emt 0:02:15]} Bxg4 {[%emt 0:00:07]} 16. Rab1 {[%emt 0:00:17]} O-O {[%emt 0:15:39]} 17. b4 {[%emt 0:01:43]} a6 {[%emt 0:03:17]} 18. a4 {[%emt 0:01:09]} Rfe8 {[%emt 0:11:10]} 19. Rb2 $146 {[%emt 0:07:16]} Qg5 {[%emt 0:07:24]} 20. Kh1 {[%emt 0:01:52]} Re6 {[%emt 0:02:25]} 21. Rg1 {[%emt 0:16:50]} Rae8 {[%emt 0:01:20]} 22. b5 {[%emt 0:03:28]} axb5 {[%emt 0:03:21]} 23. axb5 {[%emt 0:00:26]} f5 {[%emt 0:05:23]} 24. bxc6 {[%emt 0:01:46]} bxc6 {[%emt 0:00:15]} 25. Qd2 {[%emt 0:06:34]} Rg6 {[%emt 0:14:25]} 26. Qc1 {[%emt 0:01:57]} Qf6 {[%emt 0:07:39]} 27. f3 {[%emt 0:04:15]} Bh5 {[%emt 0:00:26]} 28. Ne2 {[%emt 0:00:33]} Rg5 {[%emt 0:02:13]} 29. Nf4 {[%emt 0:00:37]} Bf7 {[%emt 0:00:44]} 30. Nd3 {[%emt 0:01:33]} Rh5 {[%emt 0:02:04]} 31. g3 {[%emt 0:00:44]} g5 {[%emt 0:00:44]} 32. f4 {[%emt 0:01:39]} gxf4 {[%emt 0:01:58]} 33. gxf4+ {[%emt 0:00:18]} Kh8 {[%emt 0:01:57]} 34. Ne5 {[%emt 0:00:33]} Rh3 {[%emt 0:01:45]} 35. Qd2 {[%emt 0:02:40]} Bh5 {[%emt 0:02:23]} 36. Rg3 {[%emt 0:03:09]} Rxg3 {[%emt 0:05:04]} 37. hxg3 {[%emt 0:00:06]} c5 {[%emt 0:00:34]} 38. dxc5 {[%emt 0:04:38]} Qa6 {[%emt 0:00:32]} 39. Qd4 {[%emt 0:01:20]} Kg8 {[%emt 0:00:29]} 40. Qxd5+ {[%emt 0:00:15]} Kh8 {[%emt 0:00:13]} 41. Qd4 {[%emt 0:31:55]} Qf1+ {[%emt 0:30:39]} 42. Kh2 {[%emt 0:00:24]} Kg8 {[%emt 0:00:32]} 43. Qd5+ {[%emt 0:01:43]} Kh8 {[%emt 0:00:12]} 44. Qd6 {[%emt 0:01:01]} Kg7 {[%emt 0:00:00]} 45. Rb7+ {[%emt 0:00:00]} Kg8 {[%emt 0:00:00]} 46. Qd5+ {[%emt 0:00:00]} Kh8 {[%emt 0:00:00]} 47. Ng6+ {[%emt 0:00:00]} Bxg6 {[%emt 0:00:00]} 48. Qd4+ {[%emt 0:00:00]} 1-0

[Event "Marienbad Open-B1 2019"]
[Site "Marianske Lazne"]
[Date "2019.01.22"]
[Round "4"]
[White "Voinikonis, Nikita"]
[Black "Florstedt, Johannes"]
[Result "0-1"]
[ECO "B90"]
[WhiteElo "2163"]
[BlackElo "2320"]
[Annotator "NA"]
[PlyCount "96"]
[EventDate "2019.01.17"]
[EventType "tourn"]
[EventCountry "CZE"]
[SourceTitle "playchess.com"]
[Source "ChessBase"]
[SourceQuality "1"]
[TimeControl "40/5400+30:1800+30"]

1. e4 {[%emt 0:00:04]} c5 {[%emt 0:06:18]} 2. Nf3 {[%emt 0:00:24]} d6 {[%emt 0:00:07]} 3. d4 {[%emt 0:00:05]} cxd4 {[%emt 0:00:04]} 4. Nxd4 {[%emt 0:00:04]} Nf6 {[%emt 0:00:06]} 5. Nc3 {[%emt 0:00:06]} a6 {[%emt 0:00:04]} 6. h3 {[%emt 0:00:14]} e5 {[%emt 0:00:11]} 7. Nb3 {[%emt 0:00:11]} Be6 {[%emt 0:04:22] B90: Sicilian Najdorf: Unusual White 6th moves, 6 Be3 Ng4 and 6 Be3 e5} 8. f4 {[%emt 0:00:36]} g6 {[%emt 0:06:51]} (8... exf4 9. Bxf4 Nc6 10. Qe2 Be7 11. O-O-O Qc7 12. g4 O-O 13. g5 Nd7 14. Nd5 Bxd5 15. exd5 {1-0 (36) Safarli,E (2667)-Papaioannou,I (2647) Rio Achaea 2018}) 9. Be2 {[%emt 0:11:13]} Nh5 {[%emt 0:06:45]} 10. Bxh5 {[%emt 0:07:41]} Qh4+ {[%emt 0:00:10]} 11. Kf1 {[%emt 0:00:15]} gxh5 {[%emt 0:01:05]} 12. f5 {[%emt 0:06:41]} Bc4+ {[%emt 0:00:54]} 13. Kg1 {[%emt 0:00:09]} Rg8 {[%emt 0:03:43]} 14. Na5 $146 {[%emt 0:18:48]} ({Predecessor:} 14. Qf3 Nc6 15. Be3 {1-0 (57) Buessing,O (2461)-Kazoks,A (2341) ICCF email 2016}) 14... d5 {[%emt 0:05:38]} 15. Nxc4 {[%emt 0:01:20]} dxc4 {[%emt 0:00:23]} 16. Be3 {[%emt 0:00:43]} Nc6 {[%emt 0:06:10]} 17. Qe2 {[%emt 0:12:30]} Nd4 {[%emt 0:07:17]} 18. Bxd4 {[%emt 0:04:21]} exd4 {[%emt 0:00:07]} 19. Nd5 {[%emt 0:00:04]} Rc8 {[%emt 0:10:58]} 20. Qxh5 {[%emt 0:08:17]} Qxh5 {[%emt 0:01:53]} 21. Nf6+ {[%emt 0:00:06]} Ke7 {[%emt 0:00:07]} 22. Nxh5 {[%emt 0:00:04]} Bh6 {[%emt 0:00:16]} 23. Kf2 {[%emt 0:04:29]} c3 {[%emt 0:03:00]} 24. Rab1 {[%emt 0:04:10]} b5 {[%emt 0:15:08]} 25. g4 {[%emt 0:05:34]} cxb2 {[%emt 0:01:24]} 26. Rxb2 {[%emt 0:00:05]} Rc3 {[%emt 0:00:05]} 27. e5 {[%emt 0:00:59]} Rgc8 {[%emt 0:02:35]} 28. Nf6 {[%emt 0:00:54]} Be3+ {[%emt 0:00:34]} 29. Ke2 {[%emt 0:00:14]} Rxc2+ {[%emt 0:00:11]} 30. Rxc2 {[%emt 0:00:04]} Rxc2+ {[%emt 0:00:06]} 31. Kd3 {[%emt 0:00:10]} Rxa2 {[%emt 0:05:29]} 32. Nxh7 {[%emt 0:00:10]} b4 {[%emt 0:03:12]} 33. Kc4 {[%emt 0:01:07]} a5 {[%emt 0:02:11]} 34. Nf6 {[%emt 0:01:43]} Rc2+ {[%emt 0:01:11]} 35. Kb5 {[%emt 0:00:46]} b3 {[%emt 0:00:15]} 36. Rb1 {[%emt 0:00:13]} b2 {[%emt 0:00:27]} 37. Kxa5 {[%emt 0:03:06]} Rc5+ {[%emt 0:00:59]} 38. Kb4 {[%emt 0:01:05]} Rxe5 {[%emt 0:00:05]} 39. Ng8+ {[%emt 0:01:15]} Kf8 {[%emt 0:00:08]} 40. Nf6 {[%emt 0:00:08]} Ke7 {[%emt 0:00:28]} 41. Ng8+ $19 {[%emt 0:31:40]} Kd6 {[%emt 0:10:35]} 42. Kc4 {[%emt 0:00:00]} Rc5+ {[%emt 0:00:23]} 43. Kb3 {[%emt 0:00:00]} Bc1 {[%emt 0:00:12]} 44. Nf6 {[%emt 0:00:00]} Rc3+ {[%emt 0:01:11]} 45. Kb4 {[%emt 0:00:00]} Ke5 {[%emt 0:02:09]} 46. g5 {[%emt 0:00:00]} Rxh3 {[%emt 0:00:46]} 47. Nd7+ {[%emt 0:00:00]} Kxf5 {[%emt 0:00:11]} 48. Kc4 {[%emt 0:00:00]} d3 {[%emt 0:00:14]} 0-1

[Event "Marienbad Open-B1 2019"]
[Site "Marianske Lazne"]
[Date "2019.01.22"]
[Round "5"]
[White "Nagy, Gabor"]
[Black "Gorbatov, Alexej"]
[Result "1-0"]
[ECO "A06"]
[WhiteElo "2479"]
[BlackElo "2389"]
[Annotator "ChessBase"]
[PlyCount "79"]
[EventDate "2019.01.17"]
[EventType "tourn"]
[EventCountry "CZE"]
[SourceTitle "playchess.com"]
[Source "ChessBase"]
[SourceQuality "1"]
[TimeControl "40/5400+30:1800+30"]

1. Nf3 {[%emt 0:00:00]} d5 {[%emt 0:01:55]} 2. c4 {[%emt 0:00:48]} e6 {[%emt 0:01:02]} 3. d4 {[%emt 0:01:51]} a6 {[%emt 0:04:17]} 4. cxd5 {[%emt 0:01:55]} exd5 {[%emt 0:00:54]} 5. Nc3 {[%emt 0:00:08]} Be7 {[%emt 0:02:59]} 6. Bf4 {[%emt 0:02:36]} Nf6 {[%emt 0:00:24]} 7. Qc2 {[%emt 0:01:56]} Nc6 {[%emt 0:01:47]} 8. e3 {[%emt 0:02:43]} O-O {[%emt 0:05:24]} 9. a3 {[%emt 0:02:29]} Re8 {[%emt 0:08:03]} 10. Bd3 {[%emt 0:01:31]} h6 {[%emt 0:00:42]} 11. h3 {[%emt 0:06:20]} Bd6 {[%emt 0:00:11]} 12. O-O {[%emt 0:03:28]} Bxf4 {[%emt 0:07:23]} 13. exf4 {[%emt 0:00:08]} Qd6 {[%emt 0:01:25]} 14. Ne2 {[%emt 0:00:31]} Bd7 {[%emt 0:09:39]} 15. Ne5 {[%emt 0:01:18]} Re7 {[%emt 0:02:40]} 16. Rac1 {[%emt 0:00:23]} Be8 {[%emt 0:00:08]} 17. Rfd1 {[%emt 0:02:06]} g6 {[%emt 0:05:50]} 18. f3 {[%emt 0:01:17]} Kg7 {[%emt 0:00:09]} 19. Qb3 {[%emt 0:03:24]} Na5 {[%emt 0:00:53]} 20. Qc3 {[%emt 0:00:12]} Nc6 {[%emt 0:01:52]} 21. f5 {[%emt 0:03:48]} g5 {[%emt 0:06:09]} 22. h4 {[%emt 0:05:32]} Nxd4 {[%emt 0:06:18]} 23. Nxd4 {[%emt 0:00:08]} Qxe5 {[%emt 0:00:11]} 24. Ne6+ {[%emt 0:00:22]} Rxe6 {[%emt 0:00:04]} 25. fxe6 {[%emt 0:00:06]} Qe3+ {[%emt 0:07:27]} 26. Kf1 {[%emt 0:00:47]} gxh4 {[%emt 0:01:10]} 27. Re1 {[%emt 0:00:35]} Qg5 {[%emt 0:01:42]} 28. Re5 {[%emt 0:03:23]} Qf4 {[%emt 0:04:10]} 29. Rf5 {[%emt 0:00:36]} d4 {[%emt 0:00:00]} 30. Qxc7 {[%emt 0:02:10]} Qe3 {[%emt 0:00:09]} 31. Rd1 {[%emt 0:00:15]} Qxe6 {[%emt 0:01:08]} 32. Qf4 {[%emt 0:00:29]} Rd8 {[%emt 0:02:15]} 33. Qxh4 {[%emt 0:01:47]} Bb5 {[%emt 0:00:38]} 34. Qg3+ {[%emt 0:00:12]} Kf8 {[%emt 0:00:53]} 35. Qe5 {[%emt 0:03:13]} Qb3 {[%emt 0:00:06]} 36. Qxf6 {[%emt 0:02:42]} Qxd1+ {[%emt 0:00:02]} 37. Kf2 {[%emt 0:00:01]} Qd2+ {[%emt 0:00:35]} 38. Kg3 {[%emt 0:00:07]} Rd7 {[%emt 0:00:56]} 39. Bxb5 {[%emt 0:02:09]} axb5 {[%emt 0:00:11]} 40. Re5 {[%emt 0:00:46]} 1-0

[Event "Marienbad Open-B1 2019"]
[Site "Marianske Lazne"]
[Date "2019.01.22"]
[Round "5"]
[White "Florstedt, Johannes"]
[Black "Mica, Marek"]
[Result "1/2-1/2"]
[ECO "B12"]
[WhiteElo "2320"]
[BlackElo "2212"]
[Annotator "NA"]
[PlyCount "83"]
[EventDate "2019.01.17"]
[EventType "tourn"]
[EventCountry "CZE"]
[SourceTitle "playchess.com"]
[Source "ChessBase"]
[SourceQuality "1"]
[TimeControl "40/5400+30:1800+30"]

1. e4 {[%emt 0:01:05]} c6 {[%emt 0:00:00]} 2. d4 {[%emt 0:00:09]} d5 {[%emt 0:00:00]} 3. e5 {[%emt 0:00:06]} Bf5 {[%emt 0:00:00]} 4. h4 {[%emt 0:00:05]} h5 {[%emt 0:00:04]} 5. Bd3 {[%emt 0:00:05]} Bxd3 {[%emt 0:00:09]} 6. Qxd3 {[%emt 0:00:04]} e6 {[%emt 0:00:09]} 7. Bg5 {[%emt 0:00:04]} Be7 {[%emt 0:00:14]} 8. Nf3 {[%emt 0:00:12]} Nh6 {[%emt 0:00:54]} 9. Nc3 {[%emt 0:01:37]} Nf5 {[%emt 0:02:54]} 10. Ne2 {[%emt 0:00:38]} Qa5+ {[%emt 0:01:34]} 11. c3 {[%emt 0:01:20]} Qa6 {[%emt 0:00:46]} 12. Qd2 {[%emt 0:00:55]} Nd7 {[%emt 0:05:57]} 13. Bxe7 {[%emt 0:03:54]} Kxe7 {[%emt 0:02:05]} 14. O-O {[%emt 0:01:45]} c5 {[%emt 0:04:30]} 15. Ng3 {[%emt 0:01:42]} Nxg3 {[%emt 0:01:00]} 16. Qg5+ {[%emt 0:01:44]} Kf8 {[%emt 0:00:38]} 17. fxg3 {[%emt 0:00:26]} Rh6 {[%emt 0:07:41]} 18. Rf2 {[%emt 0:02:17]} f5 {[%emt 0:07:13]} 19. exf6 {[%emt 0:00:45]} Nxf6 {[%emt 0:00:43]} 20. Qf4 {[%emt 0:07:16]} Kg8 {[%emt 0:03:59]} 21. Ng5 {[%emt 0:00:13]} Qc6 {[%emt 0:00:40]} 22. Re1 {[%emt 0:21:40]} Re8 {[%emt 0:01:22]} 23. dxc5 {[%emt 0:00:35]} Qxc5 {[%emt 0:09:21]} 24. Rxe6 {[%emt 0:02:31]} Rf8 {[%emt 0:00:50]} 25. Re5 {[%emt 0:13:43]} Nh7 {[%emt 0:05:19]} 26. Rf5 {[%emt 0:03:53]} Rhf6 {[%emt 0:00:28]} 27. Rxf6 {[%emt 0:12:36]} Rxf6 {[%emt 0:01:15]} 28. Qd2 {[%emt 0:07:45]} Nxg5 {[%emt 0:01:37]} 29. hxg5 {[%emt 0:00:08]} Rxf2 {[%emt 0:07:25]} 30. Qxf2 {[%emt 0:00:05]} Qxf2+ {[%emt 0:02:04]} 31. Kxf2 {[%emt 0:00:06]} Kf7 {[%emt 0:00:05]} 32. Kf3 {[%emt 0:07:56]} g6 {[%emt 0:02:48]} 33. g4 {[%emt 0:00:27]} h4 {[%emt 0:01:30]} 34. Ke3 {[%emt 0:00:36]} Ke6 {[%emt 0:00:39]} 35. Kd4 {[%emt 0:00:08]} Kd6 {[%emt 0:00:18]} 36. b3 {[%emt 0:02:34]} Ke6 {[%emt 0:03:42]} 37. a4 {[%emt 0:02:35]} Kd6 {[%emt 0:02:09]} 38. a5 {[%emt 0:01:51]} b6 {[%emt 0:03:30]} 39. a6 {[%emt 0:01:12]} Ke6 {[%emt 0:00:08]} 40. Kd3 {[%emt 0:00:58]} Kd6 {[%emt 0:03:16]} 41. Kd4 {[%emt 0:32:06]} Ke6 {[%emt 0:30:30] Ke4} 42. Kd3 {[%emt 0:00:19]} 1/2-1/2

[Event "Marienbad Open-B1 2019"]
[Site "Marianske Lazne"]
[Date "2019.01.22"]
[Round "5"]
[White "Baum, Jonasz"]
[Black "Jasny, Stanislav"]
[Result "0-1"]
[ECO "A40"]
[WhiteElo "2302"]
[BlackElo "2365"]
[Annotator "NA"]
[PlyCount "82"]
[EventDate "2019.01.17"]
[EventType "tourn"]
[EventCountry "CZE"]
[SourceTitle "playchess.com"]
[Source "ChessBase"]
[SourceQuality "1"]
[TimeControl "40/5400+30:1800+30"]

1. d4 {[%emt 0:00:00]} Nf6 {[%emt 0:00:00]} 2. c4 {[%emt 0:00:00]} e6 {[%emt 0:01:01]} 3. g3 {[%emt 0:00:00]} d5 {[%emt 0:01:51]} 4. Nf3 {[%emt 0:00:00]} Bb4+ {[%emt 0:00:52]} 5. Nbd2 {[%emt 0:00:03]} O-O {[%emt 0:00:40]} 6. Bg2 {[%emt 0:00:05]} b6 {[%emt 0:02:11]} 7. O-O {[%emt 0:01:40]} Bb7 {[%emt 0:01:55]} 8. cxd5 {[%emt 0:00:07]} exd5 {[%emt 0:00:15]} 9. a3 {[%emt 0:00:35]} Bd6 {[%emt 0:00:25]} 10. b4 {[%emt 0:00:27]} Nbd7 {[%emt 0:01:38]} 11. Bb2 {[%emt 0:00:24]} Re8 {[%emt 0:00:15]} 12. Re1 {[%emt 0:01:14]} Ne4 {[%emt 0:08:21]} 13. Qc2 {[%emt 0:03:41]} Ndf6 {[%emt 0:08:20]} 14. Ne5 {[%emt 0:01:04]} c5 {[%emt 0:06:45]} 15. Nxe4 {[%emt 0:08:50]} Nxe4 {[%emt 0:06:10]} 16. bxc5 {[%emt 0:10:18]} bxc5 {[%emt 0:02:54]} 17. e3 {[%emt 0:00:43]} Qc7 {[%emt 0:09:19]} 18. Rac1 {[%emt 0:02:10]} Nf6 {[%emt 0:07:41]} 19. f4 {[%emt 0:08:06]} c4 {[%emt 0:00:51]} 20. Qa4 {[%emt 0:00:46]} Qe7 {[%emt 0:04:25]} 21. Rb1 {[%emt 0:02:39]} Bc8 {[%emt 0:00:39]} 22. Nxc4 {[%emt 0:26:09]} Bd7 {[%emt 0:04:39]} 23. Qc2 {[%emt 0:01:06]} Rac8 {[%emt 0:02:38]} 24. e4 {[%emt 0:00:30]} Rxc4 {[%emt 0:00:51]} 25. Qd3 {[%emt 0:01:25]} Ba4 {[%emt 0:05:55]} 26. e5 {[%emt 0:04:34]} Bc2 {[%emt 0:01:05]} 27. Qf1 {[%emt 0:00:37]} Bxb1 {[%emt 0:00:23]} 28. Rxb1 {[%emt 0:00:13]} Bxa3 {[%emt 0:03:46]} 29. Bxa3 {[%emt 0:03:29]} Qxa3 {[%emt 0:00:15]} 30. exf6 {[%emt 0:00:04]} Qe3+ {[%emt 0:00:29]} 31. Kh1 {[%emt 0:00:07]} Rec8 {[%emt 0:01:47]} 32. Re1 {[%emt 0:02:02]} Qxe1 {[%emt 0:00:35]} 33. Qxe1 {[%emt 0:00:04]} Rc1 {[%emt 0:00:05]} 34. Qg1 {[%emt 0:00:30]} Rxg1+ {[%emt 0:00:08]} 35. Kxg1 {[%emt 0:00:03]} Rc4 {[%emt 0:01:10]} 36. Bxd5 {[%emt 0:00:21]} Rxd4 {[%emt 0:00:06]} 37. Bb3 {[%emt 0:00:15]} Rb4 {[%emt 0:02:09]} 38. Bd5 {[%emt 0:00:10]} a5 {[%emt 0:01:00]} 39. fxg7 {[%emt 0:00:06]} a4 {[%emt 0:00:19]} 40. Kf2 {[%emt 0:00:21]} a3 {[%emt 0:00:07]} 41. f5 {[%emt 0:30:19]} Kxg7 {[%emt 0:30:07]} 0-1